fUST/lending_fUST_20260512
["ID","MTS","AMOUNT","RATE_DAILY","PERIOD"]
[422081905,1778556640000,-500.0,0.00011232,2]
[422081922,1778556640000,-976.63,0.00011232,2]
[422081912,1778556640000,-500.0,0.00011232,2]
[422081928,1778556640000,-151.0,0.00011232,2]
[422081932,1778556640000,-500.0,0.00011232,2]
[422081935,1778556640000,-500.0,0.00011232,2]
[422081929,1778556640000,-256.833097,0.00011232,2]
[422081954,1778556640000,-437.56026405,0.00011232,2]
[422081953,1778556640000,-859.7,0.00011232,2]
[422081952,1778556640000,-500.0,0.00011232,2]
[422081951,1778556640000,-500.0,0.00011232,2]
[422081950,1778556640000,-566.55,0.00011232,2]
[422081949,1778556640000,-500.0,0.00011232,2]
[422081948,1778556640000,-558.79940438,0.00011232,2]
[422081947,1778556640000,-1398.11059562,0.00011232,2]
[422081945,1778556640000,-253.16358418,0.00011232,2]
[422081942,1778556640000,-246.83641582,0.00011232,2]
[422081946,1778556640000,-677.92,0.00011232,2]
[422081940,1778556640000,-434.95091772,0.00011232,2]
[422081939,1778556640000,-500.0,0.00011232,2]
[422081938,1778556640000,-2881.57,0.00011232,2]
[422081936,1778556640000,-500.0,0.00011232,2]
[422081933,1778556640000,-1032.9,0.00011232,2]
[422081931,1778556640000,-500.0,0.00011232,2]
[422081934,1778556640000,-900.45,0.00011232,2]
[422081937,1778556640000,-660.6,0.00011232,2]
[422081930,1778556640000,-500.0,0.00011232,2]
[422081941,1778556640000,-65.04908228,0.00011232,2]
[422081957,1778556641000,-933.45,0.00011232,2]
[422081956,1778556641000,-692.51,0.00011232,2]
[422081958,1778556641000,-233.32644323,0.00011232,2]
[422081955,1778556641000,-62.43973595,0.00011232,2]
[422082024,1778556647000,-1424.4464,0.00011506,2]
[422082003,1778556647000,-1724.81,0.00011232,2]
[422082005,1778556647000,-500.0,0.00011232,2]
[422082013,1778556647000,-500.0,0.00011232,2]
[422082009,1778556647000,-858.83,0.00011232,2]
[422082015,1778556647000,-1097.54,0.00011232,2]
[422082025,1778556647000,-500.0,0.00011506,2]
[422082014,1778556647000,-599.93,0.00011232,2]
[422082018,1778556647000,-825.41,0.00011232,2]
[422082020,1778556647000,-443.0,0.00011254,2]
[422082008,1778556647000,-1357.66,0.00011232,2]
[422082016,1778556647000,-375.33604618,0.00011232,2]
[422082033,1778556647000,-500.0,0.00011506,2]
[422082023,1778556647000,-208.73,0.00011309,2]
[422082017,1778556647000,-1295.96,0.00011232,2]
[422082026,1778556647000,-500.0,0.00011506,2]
[422082021,1778556647000,-185.0,0.00011254,2]
[422082022,1778556647000,-150.07,0.00011284,2]
[422082027,1778556647000,-500.0,0.00011506,2]
[422082028,1778556647000,-500.0,0.00011506,2]
[422082036,1778556647000,-500.0,0.00011506,2]
[422082032,1778556647000,-500.0,0.00011506,2]
[422082031,1778556647000,-500.0,0.00011506,2]
[422082030,1778556647000,-500.0,0.00011506,2]
[422082007,1778556647000,-500.0,0.00011232,2]
[422082029,1778556647000,-500.0,0.00011506,2]
[422082019,1778556647000,-605.55,0.00011232,2]
[422082010,1778556647000,-500.0,0.00011232,2]
[422081996,1778556647000,-2180.02,0.00011232,2]
[422082011,1778556647000,-551.44207941,0.00011232,2]
[422082038,1778556647000,-1013.41,0.00011506,2]
[422081981,1778556647000,-2292.66355677,0.00011232,2]
[422081978,1778556647000,-825.41,0.00010958,2]
[422081980,1778556647000,-5000.0,0.0001112,2]
[422081982,1778556647000,-500.0,0.00011232,2]
[422081979,1778556647000,-605.55,0.00010958,2]
[422081987,1778556647000,-1538.45,0.00011232,2]
[422081985,1778556647000,-500.0,0.00011232,2]
[422081983,1778556647000,-1667.13,0.00011232,2]
[422081984,1778556647000,-1565.77,0.00011232,2]
[422081986,1778556647000,-555.6,0.00011232,2]
[422081989,1778556647000,-500.0,0.00011232,2]
[422081999,1778556647000,-896.51,0.00011232,2]
[422082000,1778556647000,-614.01,0.00011232,2]
[422081991,1778556647000,-500.0,0.00011232,2]
[422081993,1778556647000,-500.0,0.00011232,2]
[422081988,1778556647000,-500.0,0.00011232,2]
[422081990,1778556647000,-2173.08,0.00011232,2]
[422081997,1778556647000,-500.0,0.00011232,2]
[422081992,1778556647000,-11685.93,0.00011232,2]
[422081998,1778556647000,-1464.58,0.00011232,2]
[422081994,1778556647000,-500.0,0.00011232,2]
[422081995,1778556647000,-1831.58,0.00011232,2]
[422082001,1778556647000,-622.39610003,0.00011232,2]
[422082006,1778556647000,-946.94,0.00011232,2]
[422082012,1778556647000,-500.0,0.00011232,2]
[422082004,1778556647000,-500.0,0.00011232,2]
[422082002,1778556647000,-500.0,0.00011232,2]
[422082037,1778556647000,-500.0,0.00011506,2]
[422082034,1778556647000,-500.0,0.00011506,2]
[422082040,1778556647000,-500.0,0.00011506,2]
[422082065,1778556647000,-500.0,0.00011506,2]
[422082067,1778556647000,-1956.91,0.00011506,2]
[422082074,1778556647000,-692.51,0.00011506,2]
[422082073,1778556647000,-500.0,0.00011506,2]
[422082072,1778556647000,-859.7,0.00011506,2]
[422082075,1778556647000,-933.45,0.00011506,2]
[422082070,1778556647000,-500.0,0.00011506,2]
[422082071,1778556647000,-500.0,0.00011506,2]
[422082080,1778556647000,-500.0,0.00011506,2]
[422082081,1778556647000,-555.6,0.00011506,2]
[422082087,1778556647000,-11685.93,0.00011506,2]
[422082085,1778556647000,-2173.08,0.00011506,2]
[422082086,1778556647000,-500.0,0.00011506,2]
[422082082,1778556647000,-1538.45,0.00011506,2]
[422082088,1778556647000,-500.0,0.00011506,2]
[422082091,1778556647000,-2180.02,0.00011506,2]
[422082083,1778556647000,-500.0,0.00011506,2]
[422082089,1778556647000,-500.0,0.00011506,2]
[422082090,1778556647000,-1831.58,0.00011506,2]
[422082084,1778556647000,-500.0,0.00011506,2]
[422082093,1778556647000,-1464.58,0.00011506,2]
[422082092,1778556647000,-629.60910394,0.00011506,2]
[422082095,1778556647000,-614.01,0.00011506,2]
[422082094,1778556647000,-896.51,0.00011506,2]
[422082097,1778556647000,-1724.81,0.00011506,2]
[422082096,1778556647000,-500.0,0.00011506,2]
[422082035,1778556647000,-500.0,0.00011506,2]
[422082068,1778556647000,-500.0,0.00011506,2]
[422082077,1778556647000,-500.0,0.00011506,2]
[422082079,1778556647000,-1565.77,0.00011506,2]
[422082069,1778556647000,-566.55,0.00011506,2]
[422082050,1778556647000,-1028.84,0.00011506,2]
[422082078,1778556647000,-1667.13,0.00011506,2]
[422082041,1778556647000,-500.0,0.00011506,2]
[422082039,1778556647000,-500.0,0.00011506,2]
[422082098,1778556647000,-500.0,0.00011506,2]
[422082051,1778556647000,-500.0,0.00011506,2]
[422082047,1778556647000,-500.0,0.00011506,2]
[422082043,1778556647000,-591.97588104,0.00011506,2]
[422082044,1778556647000,-642.90861507,0.00011506,2]
[422082046,1778556647000,-500.0,0.00011506,2]
[422082048,1778556647000,-500.0,0.00011506,2]
[422082049,1778556647000,-523.22,0.00011506,2]
[422082045,1778556647000,-500.0,0.00011506,2]
[422082053,1778556647000,-976.63,0.00011506,2]
[422082042,1778556647000,-500.0,0.00011506,2]
[422082064,1778556647000,-500.0,0.00011506,2]
[422082066,1778556647000,-677.92,0.00011506,2]
[422082063,1778556647000,-500.0,0.00011506,2]
[422082060,1778556647000,-500.0,0.00011506,2]
[422082059,1778556647000,-500.0,0.00011506,2]
[422082076,1778556647000,-2525.99,0.00011506,2]
[422082058,1778556647000,-500.0,0.00011506,2]
[422082062,1778556647000,-2881.57,0.00011506,2]
[422082056,1778556647000,-151.0,0.00011506,2]
[422082054,1778556647000,-151.0,0.00011506,2]
[422082061,1778556647000,-500.0,0.00011506,2]
[422082057,1778556647000,-500.0,0.00011506,2]
[422082052,1778556647000,-500.0,0.00011506,2]
[422082055,1778556647000,-151.0,0.00011506,2]
[422082123,1778556648000,-173.56102105,0.0001178,2]
[422082121,1778556648000,-500.0,0.0001178,2]
[422082118,1778556648000,-500.0,0.0001178,2]
[422082119,1778556648000,-500.0,0.0001178,2]
[422082120,1778556648000,-471.77808198,0.0001178,2]
[422082125,1778556648000,-500.0,0.0001178,2]
[422082124,1778556648000,-500.0,0.0001178,2]
[422082129,1778556648000,-1013.41,0.0001178,2]
[422082137,1778556648000,-500.0,0.0001178,2]
[422082132,1778556648000,-500.0,0.0001178,2]
[422082130,1778556648000,-500.0,0.0001178,2]
[422082133,1778556648000,-500.0,0.0001178,2]
[422082141,1778556648000,-500.0,0.0001178,2]
[422082135,1778556648000,-365.1199401,0.0001178,2]
[422082138,1778556648000,-523.22,0.0001178,2]
[422082122,1778556648000,-500.0,0.0001178,2]
[422082134,1778556648000,-500.0,0.0001178,2]
[422082131,1778556648000,-500.0,0.0001178,2]
[422082127,1778556648000,-500.0,0.0001178,2]
[422082113,1778556648000,-160.0,0.00011578,4]
[422082115,1778556648000,-1424.4464,0.0001178,2]
[422082139,1778556648000,-1028.84,0.0001178,2]
[422082099,1778556648000,-500.0,0.00011506,2]
[422082100,1778556648000,-946.94,0.00011506,2]
[422082102,1778556648000,-1357.66,0.00011506,2]
[422082112,1778556648000,-154.30116337,0.00011573,21]
[422082104,1778556648000,-500.0,0.00011506,2]
[422082114,1778556648000,-161.56945496,0.00011578,5]
[422082103,1778556648000,-858.83,0.00011506,2]
[422082101,1778556648000,-500.0,0.00011506,2]
[422082111,1778556648000,-419.47933995,0.00011567,2]
[422082108,1778556648000,-1097.54,0.00011506,2]
[422082109,1778556648000,-1295.96,0.00011506,2]
[422082106,1778556648000,-500.0,0.00011506,2]
[422082105,1778556648000,-500.0,0.00011506,2]
[422082107,1778556648000,-599.93,0.00011506,2]
[422082110,1778556648000,-825.41,0.00011506,2]
[422082116,1778556648000,-500.0,0.0001178,2]
[422082117,1778556648000,-500.0,0.0001178,2]
[422082126,1778556648000,-500.0,0.0001178,2]
[422082128,1778556648000,-500.0,0.0001178,2]
[422082142,1778556648000,-976.63,0.0001178,2]
[422082148,1778556648000,-500.0,0.0001178,2]
[422082140,1778556648000,-500.0,0.0001178,2]
[422082166,1778556648000,-500.0,0.0001178,2]
[422082162,1778556648000,-500.0,0.0001178,2]
[422082164,1778556648000,-933.45,0.0001178,2]
[422082165,1778556648000,-2525.99,0.0001178,2]
[422082168,1778556648000,-1565.77,0.0001178,2]
[422082173,1778556648000,-500.0,0.0001178,2]
[422082172,1778556648000,-270.46587656,0.0001178,2]
[422082174,1778556648000,-2173.08,0.0001178,2]
[422082167,1778556648000,-1667.13,0.0001178,2]
[422082176,1778556648000,-8910.95654473,0.0001178,2]
[422082178,1778556648000,-500.0,0.0001178,2]
[422082181,1778556648000,-2180.02,0.0001178,2]
[422082177,1778556648000,-2774.97345527,0.0001178,2]
[422082180,1778556648000,-1831.58,0.0001178,2]
[422082183,1778556648000,-741.76683035,0.0001178,2]
[422082182,1778556648000,-1464.58,0.0001178,2]
[422082179,1778556648000,-500.0,0.0001178,2]
[422082136,1778556648000,-500.0,0.0001178,2]
[422082175,1778556648000,-500.0,0.0001178,2]
[422082158,1778556648000,-566.55,0.0001178,2]
[422082163,1778556648000,-692.51,0.0001178,2]
[422082170,1778556648000,-555.6,0.0001178,2]
[422082143,1778556648000,-151.0,0.0001178,2]
[422082145,1778556648000,-151.0,0.0001178,2]
[422082147,1778556648000,-500.0,0.0001178,2]
[422082169,1778556648000,-500.0,0.0001178,2]
[422082150,1778556648000,-500.0,0.0001178,2]
[422082157,1778556648000,-500.0,0.0001178,2]
[422082156,1778556648000,-1956.91,0.0001178,2]
[422082154,1778556648000,-500.0,0.0001178,2]
[422082153,1778556648000,-614.74862227,0.0001178,2]
[422082146,1778556648000,-500.0,0.0001178,2]
[422082149,1778556648000,-500.0,0.0001178,2]
[422082152,1778556648000,-500.0,0.0001178,2]
[422082155,1778556648000,-677.92,0.0001178,2]
[422082151,1778556648000,-2881.57,0.0001178,2]
[422082159,1778556648000,-500.0,0.0001178,2]
[422082160,1778556648000,-500.0,0.0001178,2]
[422082171,1778556648000,-1538.45,0.0001178,2]
[422082161,1778556648000,-859.7,0.0001178,2]
[422082144,1778556648000,-151.0,0.0001178,2]
[422082257,1778557832000,-500.0,0.00010684,2]
[422082256,1778557832000,-500.0,0.00010684,2]
[422082254,1778557832000,-500.0,0.00010684,2]
[422082251,1778557832000,-500.0,0.00010684,2]
[422082239,1778557832000,-348.37491435,0.00010436,2]
[422082250,1778557832000,-500.0,0.00010684,2]
[422082241,1778557832000,-300.0,0.00010682,2]
[422082246,1778557832000,-1200.0,0.00010682,2]
[422082244,1778557832000,-300.0,0.00010682,2]
[422082242,1778557832000,-300.0,0.00010682,2]
[422082237,1778557832000,-5000.0,0.00010215,2]
[422082259,1778557832000,-381.7894639,0.00010684,2]
[422082248,1778557832000,-500.0,0.00010684,2]
[422082262,1778557832000,-118.2105361,0.00010684,2]
[422082294,1778557832000,-111.65624617,0.00010757,2]
[422082278,1778557832000,-500.0,0.00010757,2]
[422082292,1778557832000,-288.84374883,0.00010757,2]
[422082274,1778557832000,-356.68058654,0.00010684,2]
[422082284,1778557832000,-500.0,0.00010757,2]
[422082286,1778557832000,-500.0,0.00010757,2]
[422082282,1778557832000,-396.85571018,0.00010757,2]
[422082280,1778557832000,-500.0,0.00010757,2]
[422082288,1778557832000,-211.15625117,0.00010757,2]
[422082269,1778557832000,-500.0,0.00010684,2]
[422082265,1778557832000,-500.0,0.00010684,2]
[422082263,1778557832000,-500.0,0.00010684,2]
[422082276,1778557832000,-500.0,0.00010757,2]
[422082271,1778557832000,-500.0,0.00010684,2]
[422082267,1778557832000,-500.0,0.00010684,2]
[422082273,1778557832000,-500.0,0.00010684,2]
[422082457,1778557838000,-48946.16273262,0.00010758,2]
[422082459,1778557838000,-4555.13162998,0.00010852,2]
[422082461,1778557838000,-211.49943268,0.00010857,2]
[422082454,1778557838000,-3191.72976468,0.00010758,2]
[422082463,1778557838000,-500.0,0.00010857,2]
[422082432,1778557838000,-388.34375383,0.00010757,2]
[422082430,1778557838000,-5000.0,0.00010649,2]
[422082436,1778557838000,-6060.23964932,0.00010758,2]
[422082434,1778557838000,-500.0,0.00010757,2]
[422082452,1778557838000,-23001.09822168,0.00010758,2]
[422082467,1778557838000,-500.0,0.00010857,2]
[422082438,1778557838000,-69597.13980008,0.00010758,2]
[422082472,1778557838000,-500.0,0.00010857,2]
[422082469,1778557838000,-500.0,0.00010857,2]
[422082470,1778557838000,-500.0,0.00010857,2]
[422082474,1778557838000,-500.0,0.00010857,2]
[422082476,1778557838000,-500.0,0.00010857,2]
[422082484,1778557838000,-136606.7461156,0.00010858,2]
[422082478,1778557838000,-499.99271611,0.00010857,2]
[422082482,1778557838000,-400.0,0.00010857,2]
[422082480,1778557838000,-500.0,0.00010857,2]
[422082486,1778557838000,-281.01403108,0.00010858,2]
[422082494,1778557838000,-243825.44412633,0.00010858,2]
[422082465,1778557838000,-500.0,0.00010857,2]
[422082496,1778557839000,-3577.7963158,0.00010858,2]
[422083134,1778557844000,-1752.6763119,0.00010858,2]
[422083132,1778557844000,-2060.3243339,0.00010858,2]
[422083130,1778557844000,-30857.41050874,0.00010858,2]
[422083137,1778557844000,-2535.75258541,0.00010858,2]
[422083139,1778557844000,-4479.15198489,0.00010858,2]
[422083136,1778557844000,-3197.03465272,0.00010858,2]
[422083468,1778557846000,-3721.97872412,0.00010858,2]
[422083454,1778557846000,-18765.42894494,0.00010858,2]
[422083667,1778559034000,-300.0,0.00010257,2]
[422083663,1778559034000,-341.40741606,0.00010198,2]
[422083661,1778559034000,-5000.0,0.0001,2]
[422083668,1778559034000,-3745.7377225,0.00010258,2]
[422083670,1778559034000,-2719.4386483,0.00010258,2]
[422083675,1778559034000,-679.23543468,0.00010258,2]
[422083665,1778559034000,-292.937,0.00010249,2]
[422083793,1778559039000,-500.0,0.00010357,2]
[422083757,1778559039000,-488.53952335,0.00010257,2]
[422083759,1778559039000,-2849.19850762,0.00010258,2]
[422083782,1778559039000,-9907.04282915,0.00010258,2]
[422083789,1778559039000,-323.21278132,0.00010356,2]
[422083791,1778559039000,-500.0,0.00010357,2]
[422083788,1778559039000,-97578.46224992,0.00010258,2]
[422083795,1778559039000,-500.0,0.00010357,2]
[422083802,1778559039000,-500.0,0.00010357,2]
[422083797,1778559039000,-500.0,0.00010357,2]
[422083803,1778559039000,-500.0,0.00010357,2]
[422083813,1778559039000,-5106.6871335,0.00010358,2]
[422083800,1778559039000,-627.45486842,0.00010357,2]
[422083806,1778559039000,-500.0,0.00010357,2]
[422083808,1778559039000,-500.0,0.00010357,2]
[422083811,1778559039000,-81389.80893395,0.00010358,2]
[422083809,1778559039000,-500.0,0.00010357,2]
[422083798,1778559039000,-500.0,0.00010357,2]
[422084026,1778559041000,-726.24112291,0.00010358,2]
[422084022,1778559041000,-2547.06363544,0.00010358,2]
[422084021,1778559041000,-1346.44188268,0.00010358,2]
[422084385,1778559044000,-3678.4336492,0.00010358,2]
[422084731,1778559047000,-688.92404718,0.00010358,2]
[422085282,1778560231000,-200.0,9.65e-05,2]
[422085283,1778560231000,-200.66,9.65e-05,7]
[422085287,1778560231000,-104.59350072,9.978e-05,2]
[422085286,1778560231000,-234.349,9.955e-05,2]
[422085292,1778560231000,-238.32702783,9.978e-05,2]
[422085294,1778560231000,-151.0,0.0001,2]
[422085313,1778560232000,-151.0,0.0001,2]
[422085296,1778560232000,-151.0,0.0001,2]
[422085301,1778560232000,-151.0,0.0001,2]
[422085299,1778560232000,-151.0,0.0001,2]
[422085303,1778560232000,-151.0,0.0001,2]
[422085298,1778560232000,-151.0,0.0001,2]
[422085305,1778560232000,-151.0,0.0001,2]
[422085307,1778560232000,-151.0,0.0001,2]
[422085309,1778560232000,-151.0,0.0001,2]
[422085315,1778560232000,-151.0,0.0001,2]
[422085333,1778560232000,-1741.67297217,0.0001,2]
[422085311,1778560232000,-151.0,0.0001,2]
[422085320,1778560232000,-151.0,0.0001,2]
[422085323,1778560232000,-151.0,0.0001,2]
[422085327,1778560232000,-151.0,0.0001,2]
[422085325,1778560232000,-151.0,0.0001,2]
[422085329,1778560232000,-151.0,0.0001,2]
[422085330,1778560232000,-151.0,0.0001,2]
[422085332,1778560232000,-151.0,0.0001,2]
[422085334,1778560232000,-1504.27572067,0.0001,2]
[422085317,1778560232000,-151.0,0.0001,2]
[422086153,1778560246000,-613.52706179,0.0001,2]
[422086158,1778560865000,901.0,0.00012,120]
[422086425,1778561431000,-354.17145966,9.771e-05,2]
[422086427,1778561431000,-500.0,9.957e-05,2]
[422086426,1778561431000,-500.0,9.957e-05,2]
[422086424,1778561431000,-152.0,9.65e-05,7]
[422086428,1778561432000,-500.0,9.957e-05,2]
[422086430,1778561432000,-500.0,9.957e-05,2]
[422086440,1778561432000,-500.0,9.957e-05,2]
[422086429,1778561432000,-362.4403849,9.957e-05,2]
[422086432,1778561432000,-500.0,9.957e-05,2]
[422086431,1778561432000,-500.0,9.957e-05,2]
[422086434,1778561432000,-500.0,9.957e-05,2]
[422086439,1778561432000,-500.0,9.957e-05,2]
[422086436,1778561432000,-500.0,9.957e-05,2]
[422086433,1778561432000,-500.0,9.957e-05,2]
[422086438,1778561432000,-368.59010857,9.957e-05,2]
[422086435,1778561432000,-500.0,9.957e-05,2]
[422086441,1778561432000,-437.42843845,9.957e-05,2]
[422086442,1778561432000,-62.57156155,9.957e-05,2]
[422086444,1778561432000,-500.0,9.957e-05,2]
[422086443,1778561432000,-500.0,9.957e-05,2]
[422086445,1778561432000,-268.84235141,9.957e-05,2]
[422086437,1778561432000,-503.10964397,9.957e-05,2]
[422086459,1778561440000,-500.0,9.957e-05,2]
[422086461,1778561440000,-500.0,9.957e-05,2]
[422086463,1778561440000,-500.0,9.957e-05,2]
[422086466,1778561440000,-500.0,9.957e-05,2]
[422086458,1778561440000,-586.50092135,9.957e-05,2]
[422086456,1778561440000,-555.25028857,9.957e-05,2]
[422086457,1778561440000,-500.0,9.957e-05,2]
[422086455,1778561440000,-458.59718065,9.957e-05,2]
[422086452,1778561440000,-231.15764859,9.957e-05,2]
[422086460,1778561440000,-500.0,9.957e-05,2]
[422086453,1778561440000,-500.0,9.957e-05,2]
[422086462,1778561440000,-500.0,9.957e-05,2]
[422086454,1778561440000,-500.0,9.957e-05,2]
[422086465,1778561440000,-500.0,9.957e-05,2]
[422086476,1778561440000,-355.53405944,9.958e-05,2]
[422086478,1778561440000,-4681.54622423,9.958e-05,2]
[422086474,1778561440000,-500.0,9.957e-05,2]
[422086477,1778561440000,-64846.92707559,9.958e-05,2]
[422086475,1778561440000,-403.70826943,9.957e-05,2]
[422086473,1778561440000,-500.0,9.957e-05,2]
[422086464,1778561440000,-500.0,9.957e-05,2]
[422086472,1778561440000,-500.0,9.957e-05,2]
[422086470,1778561440000,-500.0,9.957e-05,2]
[422086471,1778561440000,-500.0,9.957e-05,2]
[422086468,1778561440000,-413.39839489,9.957e-05,2]
[422086467,1778561440000,-500.0,9.957e-05,2]
[422086469,1778561440000,-500.0,9.957e-05,2]
[422086728,1778561443000,-45290.53186983,9.958e-05,2]
[422086730,1778561443000,-729.67770619,9.958e-05,2]
[422086721,1778561443000,-1195.92778728,9.958e-05,2]
[422086718,1778561443000,-6585.51744111,9.958e-05,2]
[422087114,1778561446000,-11318.28020912,9.958e-05,2]
[422088401,1778562638000,-500.0,9.657e-05,2]
[422088398,1778562638000,-500.0,9.657e-05,2]
[422088403,1778562638000,-355.31011625,9.658e-05,2]
[422088402,1778562638000,-450.0,9.657e-05,2]
[422088408,1778562638000,-5000.0,0.0001,2]
[422088407,1778562638000,-1445.83442208,0.0001,2]
[422088405,1778562638000,-40145.0,9.658e-05,2]
[422088404,1778562638000,-1128526.8428412,9.658e-05,2]
[422088400,1778562638000,-137.2715474,9.657e-05,2]
[422088410,1778562638000,-151.0,0.0001,2]
[422088406,1778562638000,-1809.99157524,9.757e-05,2]
[422088399,1778562638000,-362.7284526,9.657e-05,2]
[422088393,1778562638000,-231.83343571,9.657e-05,2]
[422088395,1778562638000,-450.5833654,9.657e-05,2]
[422088396,1778562638000,-500.0,9.657e-05,2]
[422088391,1778562638000,-271.04703361,9.657e-05,2]
[422088394,1778562638000,-500.0,9.657e-05,2]
[422088392,1778562638000,-500.0,9.657e-05,2]
[422088389,1778562638000,-500.0,9.657e-05,2]
[422088409,1778562638000,-151.0,0.0001,2]
[422088388,1778562638000,-537.36329044,9.657e-05,2]
[422088387,1778562638000,-243.27029437,9.657e-05,2]
[422088390,1778562638000,-228.95296639,9.657e-05,2]
[422088386,1778562638000,-256.72970563,9.657e-05,2]
[422088397,1778562638000,-157.0442661,9.657e-05,2]
[422088411,1778562638000,-151.0,0.0001,2]
[422088385,1778562638000,-217.01248043,9.657e-05,2]
[422088413,1778562638000,-2191.01261152,0.0001,2]
[422088415,1778562638000,-151.0,0.0001,2]
[422088439,1778562638000,-894.0,0.0001041,2]
[422088438,1778562638000,-894.0,0.0001041,2]
[422088436,1778562638000,-894.0,0.0001041,2]
[422088437,1778562638000,-894.0,0.0001041,2]
[422088434,1778562638000,-894.0,0.0001041,2]
[422088432,1778562638000,-894.0,0.0001041,2]
[422088429,1778562638000,-152.22992958,0.0001,2]
[422088428,1778562638000,-151.0,0.0001,2]
[422088430,1778562638000,-436.15799852,0.0001,2]
[422088426,1778562638000,-151.0,0.0001,2]
[422088435,1778562638000,-894.0,0.0001041,2]
[422088425,1778562638000,-151.0,0.0001,2]
[422088433,1778562638000,-894.0,0.0001041,2]
[422088427,1778562638000,-151.0,0.0001,2]
[422088431,1778562638000,-151.236585,0.00010293,2]
[422088416,1778562638000,-151.0,0.0001,2]
[422088414,1778562638000,-151.0,0.0001,2]
[422088418,1778562638000,-151.0,0.0001,2]
[422088417,1778562638000,-151.0,0.0001,2]
[422088422,1778562638000,-151.0,0.0001,2]
[422088412,1778562638000,-151.0,0.0001,2]
[422088420,1778562638000,-151.0,0.0001,2]
[422088419,1778562638000,-151.0,0.0001,2]
[422088423,1778562638000,-151.0,0.0001,2]
[422088424,1778562638000,-151.0,0.0001,2]
[422088421,1778562638000,-151.0,0.0001,2]
[422088481,1778562639000,-526.32715752,0.00010958,2]
[422088483,1778562639000,-500.0,0.00010958,2]
[422088484,1778562639000,-500.0,0.00010958,2]
[422088482,1778562639000,-500.0,0.00010958,2]
[422088480,1778562639000,-844.51,0.00010958,2]
[422088473,1778562639000,-575.45683659,0.00010958,2]
[422088479,1778562639000,-410.50795854,0.00010958,2]
[422088478,1778562639000,-500.0,0.00010958,2]
[422088476,1778562639000,-500.0,0.00010958,2]
[422088475,1778562639000,-500.0,0.00010958,2]
[422088469,1778562639000,-500.0,0.00010958,2]
[422088486,1778562639000,-500.0,0.00010958,2]
[422088477,1778562639000,-500.0,0.00010958,2]
[422088485,1778562639000,-500.0,0.00010958,2]
[422088494,1778562639000,-500.0,0.00010958,2]
[422088488,1778562639000,-500.0,0.00010958,2]
[422088490,1778562639000,-857.37,0.00010958,2]
[422088500,1778562639000,-1133.96,0.00010958,2]
[422088489,1778562639000,-235.445,0.00010958,2]
[422088491,1778562639000,-813.86,0.00010958,2]
[422088496,1778562639000,-1187.95,0.00010958,2]
[422088497,1778562639000,-500.0,0.00010958,2]
[422088495,1778562639000,-500.0,0.00010958,2]
[422088498,1778562639000,-500.0,0.00010958,2]
[422088492,1778562639000,-500.0,0.00010958,2]
[422088499,1778562639000,-2401.31,0.00010958,2]
[422088474,1778562639000,-500.0,0.00010958,2]
[422088493,1778562639000,-500.0,0.00010958,2]
[422088501,1778562639000,-722.24,0.00010958,2]
[422088487,1778562639000,-500.0,0.00010958,2]
[422088472,1778562639000,-960.35,0.00010958,2]